[Event "Titled Tuesday Blitz June 27 Early 2023"]
[White "Klukin, Kirill"]
[Black "Gatterer, Florian"]
[WhiteFideId "24199273"]
[BlackFideId "811688"]
[WhiteElo "2729"]
[BlackElo "2414"]
[Result "1-0"]
[Round "2"]
[TimeControl "180+2"]
[Date "2023.06.27"]
[WhiteClock "0:00:21"]
[BlackClock "0:00:00"]
[Board "135"]

1. f4 {[%clk 0:02:55]}  d5 {[%clk 0:02:58]} 2. Nf3 {[%clk 0:02:55]}  g6 {[%clk 0:02:59]} 3. g3 {[%clk 0:02:56]}  Bg7 {[%clk 0:02:59]} 4. Bg2 {[%clk 0:02:56]}  Nf6 {[%clk 0:02:59]} 5. O-O {[%clk 0:02:57]}  O-O {[%clk 0:03:00]} 6. d3 {[%clk 0:02:58]}  c5 {[%clk 0:03:00]} 7. Nc3 {[%clk 0:02:58]}  d4 {[%clk 0:02:57]} 8. Na4 {[%clk 0:02:58]}  Qc7 {[%clk 0:02:54]} 9. c4 {[%clk 0:02:58]}  Bd7 {[%clk 0:02:52]} 10. a3 {[%clk 0:02:57]}  Bc6 {[%clk 0:02:52]} 11. b4 {[%clk 0:02:54]}  b6 {[%clk 0:02:51]} 12. bxc5 {[%clk 0:02:49]}  bxc5 {[%clk 0:02:50]} 13. Nxc5 {[%clk 0:02:48]}  Ng4 {[%clk 0:02:36]} 14. Nb3 {[%clk 0:02:38]}  Ne3 {[%clk 0:02:24]} 15. Bxe3 {[%clk 0:02:36]}  dxe3 {[%clk 0:02:25]} 16. Rb1 {[%clk 0:02:37]}  Nd7 {[%clk 0:02:24]} 17. Nbd4 {[%clk 0:02:36]}  Rad8 {[%clk 0:02:07]} 18. Nxc6 {[%clk 0:02:28]}  Qxc6 {[%clk 0:02:08]} 19. Ne5 {[%clk 0:02:26]}  Qc5 {[%clk 0:02:06]} 20. Nc6 {[%clk 0:02:09]}  Rde8 {[%clk 0:02:04]} 21. Rb7 {[%clk 0:02:01]}  Nf6 {[%clk 0:01:53]} 22. Qa4 {[%clk 0:01:50]}  Ng4 {[%clk 0:01:50]} 23. Qxa7 {[%clk 0:01:50]}  Qh5 {[%clk 0:01:43]} 24. h4 {[%clk 0:01:27]}  Ra8 {[%clk 0:01:24]} 25. Qb6 {[%clk 0:01:26]}  Rxa3 {[%clk 0:00:57]} 26. Nxe7+ {[%clk 0:01:26]}  Kh8 {[%clk 0:00:57]} 27. Bf3 {[%clk 0:01:27]}  f5 {[%clk 0:00:50]} 28. Rb8 {[%clk 0:01:15]}  Qh6 {[%clk 0:00:41]} 29. Bxg4 {[%clk 0:01:09]}  fxg4 {[%clk 0:00:38]} 30. Rxf8+ {[%clk 0:01:09]}  Bxf8 {[%clk 0:00:37]} 31. Qd4+ {[%clk 0:01:10]}  Bg7 {[%clk 0:00:34]} 32. Qd8+ {[%clk 0:01:03]}  Bf8 {[%clk 0:00:33]} 33. Rb1 {[%clk 0:00:54]}  Qg7 {[%clk 0:00:14]} 34. Rb8 {[%clk 0:00:49]}  Ra1+ {[%clk 0:00:14]} 35. Kg2 {[%clk 0:00:49]}  Re1 {[%clk 0:00:14]} 36. Qxf8+ {[%clk 0:00:32]}  Qxf8 {[%clk 0:00:14]} 37. Rxf8+ {[%clk 0:00:32]}  Kg7 {[%clk 0:00:15]} 38. Rb8 {[%clk 0:00:30]}  Rxe2+ {[%clk 0:00:14]} 39. Kf1 {[%clk 0:00:31]}  Rd2 {[%clk 0:00:13]} 40. Nd5 {[%clk 0:00:29]}  Rxd3 {[%clk 0:00:12]} 41. Rb7+ {[%clk 0:00:29]}  Kh6 {[%clk 0:00:10]} 42. Nf6 {[%clk 0:00:25]}  g5 {[%clk 0:00:08]} 43. f5 {[%clk 0:00:21]}  gxh4 {[%clk 0:00:07]} 44. gxh4 {[%clk 0:00:21]}  e2+ {[%clk 0:00:04]} 45. Kxe2 {[%clk 0:00:22]}  Rd7 {[%clk 0:00:00]} 46. Rxd7 {[%clk 0:00:21]} 1-0


[Site "https://www.chess.com"]

[Event "Titled Tuesday Blitz June 27 Early 2023"]
[White "Dinu, Dumitru-Daniel"]
[Black "Boruchovsky, Avital"]
[WhiteFideId "1208403"]
[BlackFideId "2800055"]
[WhiteElo "2414"]
[BlackElo "2723"]
[Result "0-1"]
[Round "2"]
[TimeControl "180+2"]
[Date "2023.06.27"]
[WhiteClock "0:00:00"]
[BlackClock "0:00:06"]
[Board "136"]

1. e4 {[%clk 0:03:00]}  c6 {[%clk 0:02:51]} 2. Ne2 {[%clk 0:02:59]}  d5 {[%clk 0:02:52]} 3. e5 {[%clk 0:02:59]}  Nd7 {[%clk 0:02:51]} 4. d4 {[%clk 0:02:47]}  g6 {[%clk 0:02:38]} 5. h4 {[%clk 0:02:42]}  f6 {[%clk 0:02:34]} 6. h5 {[%clk 0:02:16]}  fxe5 {[%clk 0:02:14]} 7. hxg6 {[%clk 0:02:13]}  Ngf6 {[%clk 0:02:14]} 8. gxh7 {[%clk 0:02:06]}  e6 {[%clk 0:02:11]} 9. Ng3 {[%clk 0:01:53]}  Qb6 {[%clk 0:02:05]} 10. c3 {[%clk 0:01:45]}  c5 {[%clk 0:01:54]} 11. dxe5 {[%clk 0:01:41]}  Nxe5 {[%clk 0:01:55]} 12. Nh5 {[%clk 0:01:42]}  Be7 {[%clk 0:01:53]} 13. Bg5 {[%clk 0:01:39]}  Nxh5 {[%clk 0:01:16]} 14. Qxh5+ {[%clk 0:01:35]}  Nf7 {[%clk 0:01:16]} 15. Bd3 {[%clk 0:01:01]}  Bxg5 {[%clk 0:01:06]} 16. Bg6 {[%clk 0:01:00]}  Qxb2 {[%clk 0:00:56]} 17. Qxg5 {[%clk 0:00:48]}  Bd7 {[%clk 0:00:17]} 18. Qf6 {[%clk 0:00:44]}  Qc1+ {[%clk 0:00:09]} 19. Ke2 {[%clk 0:00:44]}  Bb5+ {[%clk 0:00:09]} 20. Kf3 {[%clk 0:00:38]}  Qxh1 {[%clk 0:00:09]} 21. Qxh8+ {[%clk 0:00:15]}  Ke7 {[%clk 0:00:08]} 22. Qg7 {[%clk 0:00:14]}  Rf8 {[%clk 0:00:07]} 23. Kg3 {[%clk 0:00:11]}  Qh6 {[%clk 0:00:02]} 24. Qxh6 {[%clk 0:00:08]}  Nxh6 {[%clk 0:00:03]} 25. Na3 {[%clk 0:00:06]}  Kf6 {[%clk 0:00:02]} 26. Nxb5 {[%clk 0:00:06]}  Kxg6 {[%clk 0:00:02]} 27. Nc7 {[%clk 0:00:06]}  Nf5+ {[%clk 0:00:01]} 28. Kh3 {[%clk 0:00:05]}  Ng7 {[%clk 0:00:02]} 29. g3 {[%clk 0:00:05]}  Kxh7 {[%clk 0:00:02]} 30. Re1 {[%clk 0:00:05]}  Rxf2 {[%clk 0:00:02]} 31. Nxe6 {[%clk 0:00:04]}  Rxa2 {[%clk 0:00:03]} 32. Nxc5 {[%clk 0:00:03]}  Rc2 {[%clk 0:00:02]} 33. Re7 {[%clk 0:00:03]}  Rxc3 {[%clk 0:00:02]} 34. Ne6 {[%clk 0:00:04]}  Kg6 {[%clk 0:00:03]} 35. Rd7 {[%clk 0:00:03]}  Kf6 {[%clk 0:00:04]} 36. Nxg7 {[%clk 0:00:04]}  d4 {[%clk 0:00:03]} 37. Ne8+ {[%clk 0:00:03]}  Ke5 {[%clk 0:00:03]} 38. Re7+ {[%clk 0:00:03]}  Kd5 {[%clk 0:00:02]} 39. Nf6+ {[%clk 0:00:03]}  Kc4 {[%clk 0:00:02]} 40. Rd7 {[%clk 0:00:04]}  Kb3 {[%clk 0:00:03]} 41. Rxd4 {[%clk 0:00:03]}  b5 {[%clk 0:00:03]} 42. Rd7 {[%clk 0:00:03]}  b4 {[%clk 0:00:04]} 43. Rb7 {[%clk 0:00:03]}  a5 {[%clk 0:00:03]} 44. Nd5 {[%clk 0:00:03]}  Rc5 {[%clk 0:00:04]} 45. Ne3 {[%clk 0:00:02]}  a4 {[%clk 0:00:04]} 46. Ra7 {[%clk 0:00:02]}  a3 {[%clk 0:00:05]} 47. g4 {[%clk 0:00:03]}  a2 {[%clk 0:00:05]} 48. Kh4 {[%clk 0:00:02]}  Rc1 {[%clk 0:00:05]} 49. Rxa2 {[%clk 0:00:02]}  Kxa2 {[%clk 0:00:05]} 50. g5 {[%clk 0:00:02]}  Rh1+ {[%clk 0:00:06]} 51. Kg4 {[%clk 0:00:02]}  b3 {[%clk 0:00:06]} 52. Nc4 {[%clk 0:00:03]}  Rc1 {[%clk 0:00:05]} 53. Nd2 {[%clk 0:00:03]}  b2 {[%clk 0:00:05]} 54. g6 {[%clk 0:00:04]}  Rg1+ {[%clk 0:00:05]} 55. Kf5 {[%clk 0:00:04]}  Rg2 {[%clk 0:00:06]} 56. Ne4 {[%clk 0:00:01]}  Kb3 {[%clk 0:00:05]} 57. Nc5+ {[%clk 0:00:00]}  Ka3 {[%clk 0:00:06]} 0-1


[Site "https://www.chess.com"]

[Event "Titled Tuesday Blitz June 27 Early 2023"]
[White "Mateus, Alejandro"]
[Black "Cherniaiev, Tykhon"]
[WhiteFideId "4402529"]
[BlackFideId "14182360"]
[WhiteElo "2412"]
[BlackElo "2703"]
[Result "0-1"]
[Round "2"]
[TimeControl "180+2"]
[Date "2023.06.27"]
[WhiteClock "0:00:00"]
[BlackClock "0:00:14"]
[Board "137"]

1. e4 {[%clk 0:03:00]}  e5 {[%clk 0:02:59]} 2. Nf3 {[%clk 0:02:59]}  Nc6 {[%clk 0:03:00]} 3. Bb5 {[%clk 0:02:58]}  Nge7 {[%clk 0:03:00]} 4. O-O {[%clk 0:02:57]}  Ng6 {[%clk 0:02:59]} 5. d4 {[%clk 0:02:54]}  exd4 {[%clk 0:02:55]} 6. Nxd4 {[%clk 0:02:55]}  Nxd4 {[%clk 0:02:56]} 7. Qxd4 {[%clk 0:02:55]}  c6 {[%clk 0:02:57]} 8. Ba4 {[%clk 0:02:50]}  Qb6 {[%clk 0:02:54]} 9. Be3 {[%clk 0:02:38]}  Qxd4 {[%clk 0:02:16]} 10. Bxd4 {[%clk 0:02:39]}  b5 {[%clk 0:02:16]} 11. Bb3 {[%clk 0:02:38]}  Bb7 {[%clk 0:02:16]} 12. c4 {[%clk 0:02:08]}  c5 {[%clk 0:02:13]} 13. Bc3 {[%clk 0:01:43]}  b4 {[%clk 0:02:12]} 14. Bd2 {[%clk 0:01:41]}  Be7 {[%clk 0:02:10]} 15. Re1 {[%clk 0:01:34]}  O-O {[%clk 0:02:05]} 16. a3 {[%clk 0:01:33]}  a5 {[%clk 0:02:04]} 17. f3 {[%clk 0:01:19]}  Bf6 {[%clk 0:02:00]} 18. Bc1 {[%clk 0:01:16]}  Ne5 {[%clk 0:01:53]} 19. Rd1 {[%clk 0:01:05]}  a4 {[%clk 0:01:52]} 20. Bc2 {[%clk 0:01:03]}  Nxc4 {[%clk 0:01:52]} 21. axb4 {[%clk 0:00:59]}  a3 {[%clk 0:01:06]} 22. Nxa3 {[%clk 0:00:22]}  cxb4 {[%clk 0:01:05]} 23. Nxc4 {[%clk 0:00:18]}  Rxa1 {[%clk 0:01:05]} 24. e5 {[%clk 0:00:13]}  Be7 {[%clk 0:01:00]} 25. b3 {[%clk 0:00:09]}  Bc5+ {[%clk 0:00:54]} 26. Kf1 {[%clk 0:00:08]}  Re8 {[%clk 0:00:30]} 27. f4 {[%clk 0:00:07]}  Ba6 {[%clk 0:00:23]} 28. Bd3 {[%clk 0:00:06]}  f6 {[%clk 0:00:14]} 29. exf6 {[%clk 0:00:04]}  gxf6 {[%clk 0:00:15]} 30. Be2 {[%clk 0:00:00]}  Ra2 {[%clk 0:00:14]} 0-1


[Site "https://www.chess.com"]

[Event "Titled Tuesday Blitz June 27 Early 2023"]
[White "Di Benedetto, Edoardo"]
[Black "Kopczynski, Michal"]
[WhiteFideId "875740"]
[BlackFideId "1124200"]
[WhiteElo "2689"]
[BlackElo "2410"]
[Result "1-0"]
[Round "2"]
[TimeControl "180+2"]
[Date "2023.06.27"]
[WhiteClock "0:00:25"]
[BlackClock "0:00:19"]
[Board "139"]

1. d4 {[%clk 0:03:00]}  Nf6 {[%clk 0:03:00]} 2. c4 {[%clk 0:03:01]}  g6 {[%clk 0:03:00]} 3. g3 {[%clk 0:03:01]}  Bg7 {[%clk 0:03:01]} 4. Bg2 {[%clk 0:03:02]}  d6 {[%clk 0:03:02]} 5. Nf3 {[%clk 0:03:03]}  O-O {[%clk 0:03:02]} 6. O-O {[%clk 0:03:03]}  Nfd7 {[%clk 0:03:03]} 7. Nc3 {[%clk 0:03:01]}  Nc6 {[%clk 0:03:04]} 8. e4 {[%clk 0:02:58]}  e5 {[%clk 0:03:04]} 9. Be3 {[%clk 0:02:56]}  h6 {[%clk 0:03:03]} 10. Qd2 {[%clk 0:02:51]}  Kh7 {[%clk 0:03:02]} 11. Rad1 {[%clk 0:02:50]}  f5 {[%clk 0:03:02]} 12. exf5 {[%clk 0:02:46]}  Rxf5 {[%clk 0:02:56]} 13. dxe5 {[%clk 0:02:10]}  Ndxe5 {[%clk 0:02:55]} 14. Nxe5 {[%clk 0:01:58]}  Nxe5 {[%clk 0:02:56]} 15. b3 {[%clk 0:01:57]}  Rh5 {[%clk 0:02:49]} 16. Bd4 {[%clk 0:01:46]}  Bh3 {[%clk 0:02:34]} 17. f4 {[%clk 0:01:40]}  Bxg2 {[%clk 0:02:15]} 18. Kxg2 {[%clk 0:01:33]}  Ng4 {[%clk 0:01:39]} 19. h3 {[%clk 0:01:30]}  Bxd4 {[%clk 0:01:34]} 20. hxg4 {[%clk 0:00:59]}  Bxc3 {[%clk 0:01:34]} 21. Qxc3 {[%clk 0:00:58]}  Rc5 {[%clk 0:01:31]} 22. Rfe1 {[%clk 0:00:56]}  Qd7 {[%clk 0:01:21]} 23. Qf6 {[%clk 0:00:54]}  Re8 {[%clk 0:01:20]} 24. Kf2 {[%clk 0:00:35]}  Ra5 {[%clk 0:00:25]} 25. a4 {[%clk 0:00:30]}  d5 {[%clk 0:00:23]} 26. Rxe8 {[%clk 0:00:28]}  Qxe8 {[%clk 0:00:24]} 27. Re1 {[%clk 0:00:28]}  Ra6 {[%clk 0:00:19]} 28. Re7+ {[%clk 0:00:25]} 1-0


[Site "https://www.chess.com"]

[Event "Titled Tuesday Blitz June 27 Early 2023"]
[White "Mirzoev, Azer"]
[Black "Luukkonen, Tommi"]
[WhiteFideId "13400304"]
[BlackFideId "501808"]
[WhiteElo "2687"]
[BlackElo "2410"]
[Result "1-0"]
[Round "2"]
[TimeControl "180+2"]
[Date "2023.06.27"]
[WhiteClock "0:00:04"]
[BlackClock "0:00:00"]
[Board "140"]

1. c4 {[%clk 0:03:00]}  e5 {[%clk 0:02:20]} 2. Nc3 {[%clk 0:02:59]}  Bb4 {[%clk 0:02:19]} 3. e3 {[%clk 0:02:58]}  Bxc3 {[%clk 0:02:18]} 4. bxc3 {[%clk 0:02:57]}  d6 {[%clk 0:02:17]} 5. Ne2 {[%clk 0:02:57]}  Nc6 {[%clk 0:02:17]} 6. e4 {[%clk 0:02:55]}  Nge7 {[%clk 0:02:15]} 7. Ng3 {[%clk 0:02:53]}  O-O {[%clk 0:02:14]} 8. d3 {[%clk 0:02:46]}  f5 {[%clk 0:02:08]} 9. exf5 {[%clk 0:02:46]}  Nxf5 {[%clk 0:02:08]} 10. Be2 {[%clk 0:02:46]}  Nxg3 {[%clk 0:02:01]} 11. hxg3 {[%clk 0:02:46]}  Qf6 {[%clk 0:02:00]} 12. Be3 {[%clk 0:02:31]}  b6 {[%clk 0:01:57]} 13. Bf3 {[%clk 0:02:25]}  Bb7 {[%clk 0:01:57]} 14. Bd5+ {[%clk 0:02:20]}  Rf7 {[%clk 0:01:57]} 15. Be4 {[%clk 0:02:20]}  g6 {[%clk 0:01:54]} 16. Bd5 {[%clk 0:02:04]}  Nd8 {[%clk 0:01:53]} 17. Bxf7+ {[%clk 0:02:03]}  Nxf7 {[%clk 0:01:53]} 18. f3 {[%clk 0:02:00]}  e4 {[%clk 0:01:49]} 19. dxe4 {[%clk 0:02:00]}  Qxc3+ {[%clk 0:01:49]} 20. Kf2 {[%clk 0:01:59]}  Qxc4 {[%clk 0:01:47]} 21. Qe2 {[%clk 0:01:54]}  Qe6 {[%clk 0:01:41]} 22. Rac1 {[%clk 0:01:50]}  c5 {[%clk 0:01:39]} 23. g4 {[%clk 0:01:43]}  Ne5 {[%clk 0:01:38]} 24. Kg3 {[%clk 0:01:36]}  c4 {[%clk 0:01:35]} 25. Bd4 {[%clk 0:01:27]}  b5 {[%clk 0:01:31]} 26. Qe3 {[%clk 0:01:25]}  Rf8 {[%clk 0:01:15]} 27. Bxa7 {[%clk 0:01:19]}  Nd3 {[%clk 0:01:06]} 28. Rb1 {[%clk 0:01:05]}  Qe5+ {[%clk 0:01:06]} 29. Kh4 {[%clk 0:01:00]}  Nf4 {[%clk 0:01:01]} 30. Qd2 {[%clk 0:00:47]}  g5+ {[%clk 0:00:51]} 31. Kg3 {[%clk 0:00:46]}  Nd3+ {[%clk 0:00:49]} 32. Kh3 {[%clk 0:00:30]}  Rf6 {[%clk 0:00:42]} 33. g3 {[%clk 0:00:27]}  Rxf3 {[%clk 0:00:42]} 34. Rhg1 {[%clk 0:00:26]}  Qf6 {[%clk 0:00:26]} 35. Rxb5 {[%clk 0:00:11]}  Bxe4 {[%clk 0:00:11]} 36. Qxg5+ {[%clk 0:00:10]}  Qxg5 {[%clk 0:00:11]} 37. Rxg5+ {[%clk 0:00:11]}  Kf7 {[%clk 0:00:11]} 38. Rh5 {[%clk 0:00:08]}  d5 {[%clk 0:00:08]} 39. Kh4 {[%clk 0:00:08]}  c3 {[%clk 0:00:06]} 40. Rh6 {[%clk 0:00:06]}  c2 {[%clk 0:00:06]} 41. Rc6 {[%clk 0:00:06]}  c1=Q {[%clk 0:00:03]} 42. Rgxc1 {[%clk 0:00:06]}  Nxc1 {[%clk 0:00:04]} 43. Rxc1 {[%clk 0:00:06]}  Ra3 {[%clk 0:00:05]} 44. Bd4 {[%clk 0:00:05]}  Rxa2 {[%clk 0:00:05]} 45. Rc7+ {[%clk 0:00:05]}  Ke6 {[%clk 0:00:05]} 46. Rc6+ {[%clk 0:00:05]}  Kd7 {[%clk 0:00:04]} 47. Rb6 {[%clk 0:00:05]}  h6 {[%clk 0:00:02]} 48. g5 {[%clk 0:00:04]}  Rh2+ {[%clk 0:00:01]} 49. Kg4 {[%clk 0:00:04]}  h5+ {[%clk 0:00:02]} 50. Kf4 {[%clk 0:00:04]}  Rd2 {[%clk 0:00:00]} 51. Be3 {[%clk 0:00:04]} 1-0


[Site "https://www.chess.com"]

[Event "Titled Tuesday Blitz June 27 Early 2023"]
[White "Diaz Perez, Michel Alejandro"]
[Black "BenchGM"]
[WhiteFideId "3517179"]
[WhiteElo "2680"]
[BlackElo "2409"]
[Result "1-0"]
[Round "2"]
[TimeControl "180+2"]
[Date "2023.06.27"]
[WhiteClock "0:00:40"]
[BlackClock "0:00:00"]
[Board "141"]

1. Nf3 {[%clk 0:03:00]}  Nf6 {[%clk 0:02:59]} 2. c4 {[%clk 0:03:01]}  e6 {[%clk 0:02:59]} 3. e3 {[%clk 0:03:01]}  d5 {[%clk 0:02:59]} 4. Nc3 {[%clk 0:03:01]}  Be7 {[%clk 0:02:55]} 5. Qc2 {[%clk 0:03:00]}  O-O {[%clk 0:02:53]} 6. b3 {[%clk 0:03:01]}  c5 {[%clk 0:02:44]} 7. cxd5 {[%clk 0:03:00]}  exd5 {[%clk 0:02:44]} 8. d4 {[%clk 0:03:00]}  Nc6 {[%clk 0:02:34]} 9. dxc5 {[%clk 0:02:59]}  Bxc5 {[%clk 0:02:33]} 10. Na4 {[%clk 0:02:57]}  Bb4+ {[%clk 0:02:30]} 11. Bd2 {[%clk 0:02:56]}  Qa5 {[%clk 0:02:21]} 12. Bd3 {[%clk 0:02:43]}  Bg4 {[%clk 0:02:14]} 13. a3 {[%clk 0:02:33]}  Bxd2+ {[%clk 0:01:27]} 14. Qxd2 {[%clk 0:02:34]}  Bxf3 {[%clk 0:01:21]} 15. gxf3 {[%clk 0:02:32]}  Qxd2+ {[%clk 0:01:17]} 16. Kxd2 {[%clk 0:02:32]}  d4 {[%clk 0:01:17]} 17. e4 {[%clk 0:02:31]}  Nh5 {[%clk 0:01:13]} 18. Rhc1 {[%clk 0:02:25]}  Rac8 {[%clk 0:00:59]} 19. Nc5 {[%clk 0:02:19]}  Rc7 {[%clk 0:00:59]} 20. Bb5 {[%clk 0:02:14]}  Ne5 {[%clk 0:00:51]} 21. Nd3 {[%clk 0:01:47]}  Nxf3+ {[%clk 0:00:46]} 22. Ke2 {[%clk 0:01:47]}  Rxc1 {[%clk 0:00:43]} 23. Rxc1 {[%clk 0:01:48]}  Ng5 {[%clk 0:00:42]} 24. f3 {[%clk 0:01:43]}  Ne6 {[%clk 0:00:41]} 25. Bd7 {[%clk 0:01:33]}  Nhf4+ {[%clk 0:00:38]} 26. Kd2 {[%clk 0:01:22]}  Rd8 {[%clk 0:00:34]} 27. Nxf4 {[%clk 0:01:18]}  Nxf4 {[%clk 0:00:34]} 28. Rc7 {[%clk 0:01:17]}  Rb8 {[%clk 0:00:31]} 29. b4 {[%clk 0:01:08]}  Kf8 {[%clk 0:00:27]} 30. Bc8 {[%clk 0:01:02]}  Ne6 {[%clk 0:00:22]} 31. Bxe6 {[%clk 0:01:02]}  fxe6 {[%clk 0:00:22]} 32. f4 {[%clk 0:00:57]}  a5 {[%clk 0:00:13]} 33. b5 {[%clk 0:00:56]}  b6 {[%clk 0:00:11]} 34. Kd3 {[%clk 0:00:54]}  Rd8 {[%clk 0:00:04]} 35. Rc6 {[%clk 0:00:53]}  Kf7 {[%clk 0:00:03]} 36. Rxb6 {[%clk 0:00:50]}  Rc8 {[%clk 0:00:04]} 37. Rc6 {[%clk 0:00:47]}  Rb8 {[%clk 0:00:04]} 38. a4 {[%clk 0:00:46]}  g5 {[%clk 0:00:03]} 39. fxg5 {[%clk 0:00:44]}  e5 {[%clk 0:00:03]} 40. Rf6+ {[%clk 0:00:41]}  Kg7 {[%clk 0:00:00]} 41. Re6 {[%clk 0:00:40]} 1-0


[Site "https://www.chess.com"]

[Event "Titled Tuesday Blitz June 27 Early 2023"]
[White "Ai, Evan"]
[Black "Jakubowski, Krzysztof"]
[WhiteFideId "2094770"]
[BlackFideId "1112848"]
[WhiteElo "2405"]
[BlackElo "2621"]
[Result "1-0"]
[Round "2"]
[TimeControl "180+2"]
[Date "2023.06.27"]
[WhiteClock "0:00:58"]
[BlackClock "0:00:00"]
[Board "143"]

1. d4 {[%clk 0:03:00]}  Nf6 {[%clk 0:02:54]} 2. c4 {[%clk 0:03:00]}  e6 {[%clk 0:02:53]} 3. Nf3 {[%clk 0:03:00]}  b6 {[%clk 0:02:53]} 4. g3 {[%clk 0:02:55]}  Ba6 {[%clk 0:02:52]} 5. b3 {[%clk 0:02:53]}  Bb4+ {[%clk 0:02:48]} 6. Bd2 {[%clk 0:02:53]}  Be7 {[%clk 0:02:46]} 7. Qc2 {[%clk 0:02:49]}  d5 {[%clk 0:02:41]} 8. Bg2 {[%clk 0:02:48]}  O-O {[%clk 0:02:37]} 9. Bf4 {[%clk 0:02:43]}  c5 {[%clk 0:02:34]} 10. dxc5 {[%clk 0:02:42]}  bxc5 {[%clk 0:02:33]} 11. Nbd2 {[%clk 0:02:41]}  Nc6 {[%clk 0:02:31]} 12. a3 {[%clk 0:02:40]}  Nh5 {[%clk 0:02:17]} 13. O-O {[%clk 0:02:16]}  Nxf4 {[%clk 0:02:11]} 14. gxf4 {[%clk 0:02:17]}  d4 {[%clk 0:02:02]} 15. f5 {[%clk 0:02:06]}  Qc7 {[%clk 0:01:47]} 16. fxe6 {[%clk 0:02:02]}  fxe6 {[%clk 0:01:46]} 17. Qe4 {[%clk 0:02:02]}  Bb7 {[%clk 0:01:36]} 18. Qxe6+ {[%clk 0:01:59]}  Kh8 {[%clk 0:01:36]} 19. Ne4 {[%clk 0:01:58]}  Rae8 {[%clk 0:01:34]} 20. Ng3 {[%clk 0:01:45]}  Bf6 {[%clk 0:01:14]} 21. Qg4 {[%clk 0:01:42]}  Bc8 {[%clk 0:01:09]} 22. Qh5 {[%clk 0:01:39]}  g6 {[%clk 0:01:07]} 23. Qxc5 {[%clk 0:01:38]}  Be7 {[%clk 0:00:47]} 24. Qd5 {[%clk 0:01:38]}  Bb7 {[%clk 0:00:38]} 25. Nxd4 {[%clk 0:01:31]}  Nd8 {[%clk 0:00:23]} 26. Ne6 {[%clk 0:01:29]}  Qc8 {[%clk 0:00:09]} 27. Qd4+ {[%clk 0:01:11]}  Bf6 {[%clk 0:00:09]} 28. Qxa7 {[%clk 0:01:11]}  Bxg2 {[%clk 0:00:07]} 29. Nxf8 {[%clk 0:01:11]}  Re7 {[%clk 0:00:05]} 30. Qb6 {[%clk 0:00:59]}  Bxa1 {[%clk 0:00:04]} 31. Rxa1 {[%clk 0:00:59]}  Rf7 {[%clk 0:00:04]} 32. Nxg6+ {[%clk 0:00:57]}  hxg6 {[%clk 0:00:00]} 33. Qxg6 {[%clk 0:00:58]} 1-0


[Site "https://www.chess.com"]

[Event "Titled Tuesday Blitz June 27 Early 2023"]
[White "Komov, Roman"]
[Black "Szyszylo, Rafal"]
[WhiteFideId "24175714"]
[BlackFideId "1109626"]
[WhiteElo "2614"]
[BlackElo "2405"]
[Result "1-0"]
[Round "2"]
[TimeControl "180+2"]
[Date "2023.06.27"]
[WhiteClock "0:02:33"]
[BlackClock "0:00:00"]
[Board "144"]

1. e4 {[%clk 0:03:00]}  g6 {[%clk 0:03:00]} 2. d4 {[%clk 0:03:00]}  d6 {[%clk 0:03:00]} 3. Nf3 {[%clk 0:03:00]}  Nf6 {[%clk 0:03:00]} 4. Nc3 {[%clk 0:03:00]}  Bg7 {[%clk 0:03:00]} 5. Be3 {[%clk 0:03:01]}  O-O {[%clk 0:03:00]} 6. Qd2 {[%clk 0:03:01]}  Bg4 {[%clk 0:02:59]} 7. Ng5 {[%clk 0:03:01]}  h6 {[%clk 0:02:59]} 8. h3 {[%clk 0:03:02]}  hxg5 {[%clk 0:02:55]} 9. hxg4 {[%clk 0:03:01]}  Nxg4 {[%clk 0:02:55]} 10. Bxg5 {[%clk 0:03:02]}  Nc6 {[%clk 0:02:49]} 11. f3 {[%clk 0:02:53]}  Nf6 {[%clk 0:00:58]} 12. Bh6 {[%clk 0:02:52]}  Nh5 {[%clk 0:00:35]} 13. Rxh5 {[%clk 0:02:48]}  Nxd4 {[%clk 0:00:26]} 14. Bxg7 {[%clk 0:02:46]}  Nxc2+ {[%clk 0:00:14]} 15. Qxc2 {[%clk 0:02:40]}  Kxg7 {[%clk 0:00:13]} 16. Rh1 {[%clk 0:02:38]}  Rh8 {[%clk 0:00:08]} 17. Rxh8 {[%clk 0:02:38]}  Qxh8 {[%clk 0:00:09]} 18. O-O-O {[%clk 0:02:39]}  Qh6+ {[%clk 0:00:08]} 19. Kb1 {[%clk 0:02:39]}  e6 {[%clk 0:00:08]} 20. Nb5 {[%clk 0:02:33]}  Rc8 {[%clk 0:00:00]} 21. Nxd6 {[%clk 0:02:33]} 1-0


[Site "https://www.chess.com"]

[Event "Titled Tuesday Blitz June 27 Early 2023"]
[White "Molina Carretero, Daniel"]
[Black "Mohamed Anees M"]
[WhiteFideId "32071914"]
[BlackFideId "35065815"]
[WhiteElo "2400"]
[BlackElo "2603"]
[Result "0-1"]
[Round "2"]
[TimeControl "180+2"]
[Date "2023.06.27"]
[WhiteClock "0:00:15"]
[BlackClock "0:00:51"]
[Board "147"]

1. c4 {[%clk 0:03:00]}  e6 {[%clk 0:02:58]} 2. Nf3 {[%clk 0:03:00]}  d5 {[%clk 0:02:59]} 3. b3 {[%clk 0:03:01]}  Nf6 {[%clk 0:02:59]} 4. g3 {[%clk 0:03:01]}  Be7 {[%clk 0:02:58]} 5. Bg2 {[%clk 0:03:02]}  O-O {[%clk 0:02:58]} 6. O-O {[%clk 0:03:02]}  c5 {[%clk 0:02:58]} 7. Bb2 {[%clk 0:03:01]}  d4 {[%clk 0:02:59]} 8. b4 {[%clk 0:03:01]}  Nc6 {[%clk 0:02:56]} 9. b5 {[%clk 0:03:01]}  Na5 {[%clk 0:02:47]} 10. d3 {[%clk 0:03:01]}  b6 {[%clk 0:02:47]} 11. Nxd4 {[%clk 0:02:54]}  cxd4 {[%clk 0:02:29]} 12. Bxa8 {[%clk 0:02:52]}  Nb7 {[%clk 0:02:30]} 13. Nd2 {[%clk 0:02:39]}  e5 {[%clk 0:02:29]} 14. Nf3 {[%clk 0:02:30]}  Qc7 {[%clk 0:02:29]} 15. e4 {[%clk 0:02:20]}  dxe3 {[%clk 0:02:24]} 16. Bxe5 {[%clk 0:02:13]}  exf2+ {[%clk 0:02:24]} 17. Rxf2 {[%clk 0:02:12]}  Qd8 {[%clk 0:02:22]} 18. Kg2 {[%clk 0:02:04]}  Ng4 {[%clk 0:02:16]} 19. Re2 {[%clk 0:01:57]}  Nxe5 {[%clk 0:02:10]} 20. Nxe5 {[%clk 0:01:55]}  Bf6 {[%clk 0:02:10]} 21. Rb1 {[%clk 0:01:44]}  Qc7 {[%clk 0:02:08]} 22. Nf3 {[%clk 0:01:38]}  Bg4 {[%clk 0:02:07]} 23. Bxb7 {[%clk 0:01:36]}  Qxb7 {[%clk 0:02:08]} 24. Re4 {[%clk 0:01:36]}  Bf5 {[%clk 0:02:08]} 25. Rf4 {[%clk 0:01:33]}  Bg6 {[%clk 0:02:06]} 26. Qe2 {[%clk 0:01:23]}  Rd8 {[%clk 0:02:04]} 27. Rd1 {[%clk 0:01:21]}  h5 {[%clk 0:02:00]} 28. h4 {[%clk 0:01:20]}  Qd7 {[%clk 0:01:35]} 29. d4 {[%clk 0:01:16]}  Re8 {[%clk 0:01:33]} 30. Qf2 {[%clk 0:01:07]}  Be4 {[%clk 0:01:31]} 31. Kh2 {[%clk 0:01:03]}  Bf5 {[%clk 0:01:16]} 32. Ng5 {[%clk 0:00:57]}  Bg4 {[%clk 0:01:14]} 33. Re1 {[%clk 0:00:49]}  Rd8 {[%clk 0:00:51]} 34. Rxf6 {[%clk 0:00:46]}  gxf6 {[%clk 0:00:51]} 35. Ne4 {[%clk 0:00:45]}  Qxd4 {[%clk 0:00:48]} 36. Nxf6+ {[%clk 0:00:44]}  Kg7 {[%clk 0:00:48]} 37. Qxd4 {[%clk 0:00:40]}  Rxd4 {[%clk 0:00:49]} 38. Nxg4 {[%clk 0:00:32]}  hxg4 {[%clk 0:00:49]} 39. Re2 {[%clk 0:00:23]}  Rxc4 {[%clk 0:00:49]} 40. Kg2 {[%clk 0:00:24]}  Rb4 {[%clk 0:00:50]} 41. Kf2 {[%clk 0:00:20]}  Rxb5 {[%clk 0:00:50]} 42. Ke3 {[%clk 0:00:21]}  Re5+ {[%clk 0:00:50]} 43. Kd3 {[%clk 0:00:21]}  Rxe2 {[%clk 0:00:50]} 44. Kxe2 {[%clk 0:00:22]}  f5 {[%clk 0:00:50]} 45. Ke3 {[%clk 0:00:20]}  b5 {[%clk 0:00:49]} 46. Kf4 {[%clk 0:00:20]}  Kf6 {[%clk 0:00:49]} 47. h5 {[%clk 0:00:20]}  a5 {[%clk 0:00:49]} 48. h6 {[%clk 0:00:20]}  b4 {[%clk 0:00:50]} 49. h7 {[%clk 0:00:17]}  Kg7 {[%clk 0:00:50]} 50. Kxf5 {[%clk 0:00:18]}  a4 {[%clk 0:00:51]} 51. Kxg4 {[%clk 0:00:17]}  b3 {[%clk 0:00:51]} 52. axb3 {[%clk 0:00:15]}  axb3 {[%clk 0:00:51]} 0-1


[Site "https://www.chess.com"]